Cogmind - Beta 14 @@@ ROGUE MODE // 2024.10.18 @ 19:44:33 Player: diglidot Result: Destroyed by G-34 Mercenary with Small Laser Performance ------------- Evolutions (0) 0 Regions Visited (1) 200 Robots Destroyed (16) 80 Value Destroyed (435) 435 Prototype IDs (3) 60 Alien Tech Used (0) 0 Bonus (0) 0 TOTAL SCORE: 775 Bonus ------- None Cogmind --------- Core Integrity 0/250 Matter 274/300 Energy 105/125 System Corruption 0% Temperature Cool (36) Movement Core (150) Ox2 Location -10/Materials Parts ------- > --- POWER (1) -------- Light Ion Engine > --- PROPULSION (2) --- Aluminum Leg Aluminum Leg > --- UTILITY (2) ------ Heat Sink Targeting Computer > --- WEAPON (2) ------- Medium Laser Medium Laser > --- INVENTORY (5) ---- Huge Storage Unit Hacking Suite Medium Laser Medium Laser Datajack Peak State ------------ > --- POWER ------------ Light Nuclear Core > --- PROPULSION ------- Improved Aluminum Leg Improved Aluminum Leg > --- UTILITY ---------- Heat Sink Medium Matter Pod > --- WEAPON ----------- Improved Medium Laser Improved Medium Laser > --- INVENTORY -------- Ion Engine Light Ion Engine Improved Aluminum Leg Improved Aluminum Leg Grenade Launcher [Rating: 15] Favorites ----------- Power Light Nuclear Core Engine Ion Engine Power Core Light Nuclear Core Propulsion Improved Aluminum Leg Leg Improved Aluminum Leg Wheel Wheel Utility Heat Sink Device Heat Sink Storage Medium Matter Pod Processor Targeting Computer Weapon Improved Medium Laser Energy Gun Improved Medium Laser Ballistic Gun Light Assault Rifle Launcher Grenade Launcher Build | -11 -10 ------- Run | Yrd Mat Slots Evolved . | . . Power . | . . Propulsion . | . . Utility . | . . Weapon . | . . Parts Attached 30 | 8 22 Power 5 | 3 2 Engine 4 | 3 1 Core 1 | . 1 Reactor . | . . Propulsion 9 | 2 7 Treads . | . . Leg 7 | . 7 Wheel 2 | 2 . Hover . | . . Flight . | . . Utility 7 | 1 6 Device 3 | . 3 Storage 2 | 1 1 Processor 2 | . 2 Hackware . | . . Protection . | . . Artifact . | . . Weapon 9 | 2 7 Energy Gun 5 | . 5 Energy Cannon . | . . Ballistic Gun 2 | 2 . Ballistic Cannon . | . . Launcher 2 | . 2 Special Weapon . | . . Impact Weapon . | . . Slashing Weapon . | . . Piercing Weapon . | . . Special Melee Weapon . | . . Unidentified Prototypes 1 | . 1 Parts Lost 2 | . 2 Power 1 | . 1 Propulsion 1 | . 1 Utility . | . . Weapon . | . . Highest Loss Streak 2 | . 2 To Critical Strikes . | . . Average Slot Usage (%) 95 | . 95 Engine 6 | . 6 Core 7 | . 7 Leg 24 | . 24 Wheel 3 | . 3 Device 12 | . 12 Storage 4 | . 4 Processor 7 | . 7 Energy Gun 24 | . 24 Ballistic Gun 2 | . 2 Peak Build Rating 15 | 6 15 Average Rating 10 | 5 12 On Entrance 3 | . 6 Naked Turns . | . . Heaviest Build 92 | 9 92 Greatest Support 26 | 20 26 Greatest Overweight (x) 4 | 2 4 Average Overweight (x) . | . . Largest Inventory Capacity 25 | 5 25 Average Capacity 5 | 5 5 Most Carried 5 | 5 5 Average Carried 4 | 4 4 Final Capacity 5 | 5 5 Final Carried 5 | 5 5 Class Distribution -------------------- 96% | Mutant 3% | Scavenger-Mutant Dominant Class ---------------- Mutant | -10/Materials Resources | -11 -10 ----------- Run | Yrd Mat Matter Collected 613 | 345 268 Remotely . | . . Salvage Created 521 | 67 454 Parts 36 | 6 30 Haulers Intercepted . | . . Recyclers Shooed . | . . Parts Field Recycled . | . . Retrieved Matter . | . . Parts Self-Destructed . | . . Prevented . | . . Kills | -11 -10 ------- Run | Yrd Mat Combat Hostiles Destroyed 13 | 1 12 Guns 12 | 1 11 AOE 1 | . 1 Classes Destroyed 4 | 2 2 Worker 2 | 1 1 Operator 1 | . 1 Swarmer 2 | . 2 Grunt 11 | 1 10 Best Kill Streak 3 | 1 3 Combat Bots Only 3 | 1 3 Max Kills in Single Turn 2 | 1 2 Gunslinging . | . . Exploded 1 | . 1 Melee . | . . Uniques/NPCs Destroyed . | . . Combat | -11 -10 -------- Run | Yrd Mat Hostile Shots Fired 87 | 3 84 Missed 19 | . 19 Damage Taken 744 | 35 709 Core 257 | 12 245 Absorbed by Shields . | . . Core Remaining (%) 95 | 95 . Volleys Fired 52 | 4 48 Largest 2 | 2 2 Hottest 112 | 40 112 Shots Fired 102 | 8 94 Gun 100 | 8 92 Cannon . | . . Launcher 2 | . 2 Special . | . . Kinetic 38 | 8 30 Thermal 62 | . 62 Explosive 2 | . 2 Electromagnetic . | . . Robot Hit Streak 20 | 4 20 Robot Miss Streak 3 | 1 3 Penetration Max . | . . Secondary Targets 2 | . 2 Max Gunslinging Chain 1 | . 1 Shots Hit Robots 68 | 6 62 Core Hits 24 | 3 21 Critical Kills . | . . Critical Parts Destroyed . | . . Critical Strikes 3 | . 3 Burn 3 | . 3 Melee Attacks . | . . Impact . | . . Slashing . | . . Piercing . | . . Sneak Attacks . | . . Combat Hostiles . | . . Follow-up Attacks . | . . Damage Inflicted 942 | 56 886 Guns 855 | 56 799 Cannons . | . . Explosions 87 | . 87 Melee . | . . Ramming . | . . Kinetic 244 | 56 188 Thermal 611 | . 611 Explosive 87 | . 87 Electromagnetic . | . . Impact . | . . Slashing . | . . Piercing . | . . Highest Corruption . | . . Average Corruption . | . . Corruption Purged . | . . Corruption Blocked . | . . Overload Shots . | . . Overflow Damage . | . . Projectiles . | . . Explosions . | . . Melee . | . . Knockbacks . | . . Impact . | . . Kinetic . | . . Secondary . | . . Self-Inflicted Damage 7 | . 7 Shots 1 | . 1 Rammed . | . . Targets Rammed . | . . Kicked . | . . Crushed . | . . Highest Temperature 228 | 6 228 Average Temperature 61 | 6 62 Received Heat Transfer 360 | 18 342 Siege Activations . | . . Robots Corrupted . | . . Combat Hostiles . | . . Parts Fried . | . . Impact Corruptions . | . . Robots Melted . | . . Combat Hostiles . | . . Parts Melted 1 | . 1 Heat Transferred 1591 | . 1591 Parts Sabotaged . | . . Parts Stolen . | . . Parts Stripped . | . . Power Chain Reactions . | . . Alert | -11 -10 ------- Run | Yrd Mat Peak Influence 167 | 25 167 Initial 16 | . 16 Average 64 | 19 78 Maximum Alert Level . | . . Low Security (%) 100 | 100 100 Level 1 . | . . Level 2 . | . . Level 3 . | . . Level 4 . | . . Level 5 . | . . High Security . | . . Max Security . | . . Squads Dispatched 4 | . 4 Investigation 3 | . 3 Extermination . | . . Reinforcement 1 | . 1 Assault . | . . Garrison . | . . Intercept . | . . Searches Triggered . | . . Construction Impeded . | . . Haulers Reinforced . | . . Active Scanning Responses . | . . Cargo Convoy Interrupts . | . . Stealth | -11 -10 --------- Run | Yrd Mat Distress Signals 1 | . 1 Communications Jammed . | . . Distress Signals . | . . Times Spotted 20 | 1 19 Peak Tracking Total 3 | 1 3 Tactical Retreats . | . . Traps | -11 -10 ------- Run | Yrd Mat Traps Triggered 1 | . 1 Indirectly . | . . Trap Hack Attempts . | . . Triggered . | . . Disarmed . | . . Reprogrammed . | . . Reused . | . . Traps Extracted . | . . Installed . | . . Triggered . | . . Machines | -11 -10 ---------- Run | Yrd Mat Machines Disabled 1 | . 1 Max in Single Turn 1 | . 1 Machines Repaired . | . . Machines Dismantled . | . . Machines Sabotaged . | . . Overloaded Fab Kills . | . . Hacking | -11 -10 --------- Run | Yrd Mat Machines Accessed 5 | . 5 Terminals 4 | . 4 Fabricators . | . . Repair Stations . | . . Recycling Units 1 | . 1 Scanalyzers . | . . Garrison Access . | . . Total Hacks 20 | . 20 Successful 12 | . 12 Failed 8 | . 8 Catastrophic 2 | . 2 Database Lockouts . | . . Manual . | . . Terminals 13 | . 13 Fabricators . | . . Repair Stations . | . . Recycling Units 7 | . 7 Scanalyzers . | . . Garrison Access . | . . Terminal Hacks 8 | . 8 Record 5 | . 5 Prototype ID Bank 1 | . 1 Branch Access Points 1 | . 1 Dispatch Records 1 | . 1 Fabricator Hacks . | . . Repair Station Hacks . | . . Recycling Unit Hacks 4 | . 4 Report Inventory 2 | . 2 Retrieve Components 2 | . 2 Scanalyzer . | . . Garrison Access Hacks . | . . Unauthorized Hacks . | . . Terminals . | . . Fabricators . | . . Repair Stations . | . . Recycling Units . | . . Scanalyzers . | . . Garrison Access . | . . Data Cores Recovered 1 | . 1 Used . | . . Hacking Detections 4 | . 4 Full Trace Events 2 | . 2 Feedback Events . | . . Feedback Blocked . | . . Robot Schematics Acquired . | . . Robots Built . | . . Authchips . | . . Time . | . . Total Robot Build Rating . | . . Part Schematics Acquired . | . . Parts Built . | . . Authchips . | . . Time . | . . Total Part Build Rating . | . . Parts Repaired . | . . Time . | . . Parts Recycled . | . . Recycled Matter . | . . Retrieved Matter . | . . Retrieved Components 10 | . 10 Parts Scanalyzed . | . . Part Schematics Acquired . | . . Parts Damaged . | . . Bothacking | -11 -10 ------------ Run | Yrd Mat Used RIF Installer . | . . Robots Hacked . | . . Non-combat . | . . Combat . | . . Robot Hacks Applied . | . . Relay Couplers Released . | . . Fabnet Peak Effective % . | . . Robots Rewired . | . . Allies Hacked . | . . Hacks Repelled . | . . Allies | -11 -10 -------- Run | Yrd Mat Total Allies . | . . Largest Group . | . . Highest-Rated Group . | . . Highest-Rated Ally . | . . Total Orders . | . . Ally Attacks . | . . Total Damage . | . . Kills . | . . Allies Corrupted . | . . Allies Melted . | . . Intel | -11 -10 ------- Run | Yrd Mat Robot Analysis Total . | . . Derelict Logs Recovered . | . . Drone Launches . | . . Drone Recoveries . | . . Exploration | -11 -10 ------------- Run | Yrd Mat Turns Passed 1368 | 335 1033 Spaces Moved 780 | 110 670 Core 86 | 60 26 Treads . | . . Legs 584 | . 584 Wheels 110 | 50 60 Hover . | . . Flight . | . . Fastest Speed 50 | 50 80 Average Speed 116 | 99 119 Slowest Speed 330 | 150 330 Overloaded Moves . | . . Propulsion Burnouts . | . . Robots Hopped . | . . Cave-ins Triggered . | . . Exploration Rate (%) 37 | 8 67 Regions Visited 1 Branch Regions . Pre-discovered Areas . | . . Known Exits Taken . | . . Unknown Exits Taken 1 | 1 . Scrap Searched . | . . Spaces Dug . | . . Terrain Destroyed 6 | . 6 Melee . | . . Projectile . | . . AOE 6 | . 6 Terrain Rammed . | . . Walls Destroyed . | . . Machines Disabled . | . . Actions | -11 -10 --------- Run | Yrd Mat Total 1147 | 330 817 Wait 226 | 191 35 Move 779 | 109 670 Hop . | . . Pick Up 33 | 14 19 Fast Attach 6 | . 6 Attach 11 | 7 4 Detach 2 | 1 1 Swap 13 | 1 12 Drop 25 | 3 22 Fire 52 | 4 48 Melee . | . . Ram . | . . Kick . | . . Crush . | . . Escape Stasis . | . . Rewire . | . . Trap . | . . Miscellaneous . | . . Route ------- -11/Scrapyard -10/Materials (discovered 3 exits: [*Mat x2] / *Min) History --------- Turn | Location | Event 2 | -11/Scrapyard | Met Revision 17 68 | -11/Scrapyard | Discovered new exit (range 8) 336 | -11/Scrapyard | Entered Materials 337 | -10/Materials | Build established: Mutant 401 | -10/Materials | Core integrity fell below 50% 833 | -10/Materials | Discovered new exit (range 16) 929 | -10/Materials | Identified exit to Mines 1078 | -10/Materials | Core integrity fell below 20% 1121 | -10/Materials | Discovered new exit (range 13) 1369 | -10/Materials | Destroyed by G-34 Mercenary with Small Laser Last Messages --------------- Hover Unit Wheel Hacking Suite Hover Unit Ion Engine Aluminum Leg Heat Sink Lgt. Ion Engine Terrain Scanner Dropped Imp. Aluminum Leg. Acquired Aluminum Leg. Dropped Imp. Aluminum Leg. Acquired Aluminum Leg. Dropped Imp. Aluminum Leg. Acquired Hacking Suite. Connecting with Recycling Unit... ALERT: Suspicious activity at Recycling Unit M001. Dispatching Investigation squad. G-34 Mercenary suffers critical hit (Burn). [Achievement: First Step to Greatness] Map ----- +----------------------------------------------------+ | | | | | | | | | | | | | | | | | | | | | | | | | | | | | | | | | | | | | | | | | | | ?????????????????????????????????????????????????? | | ?????????????????????????????###########?????????? | | ?????????????????????????????#= #?????????? | | ?? #################*""" = ! #?????????? | | ?? @ +="Y"!= #?????????? | | ?? ############ #! =*= #?????????? | | ????????????????????????# ###########?????????? | | ????????????????????????# #????????????????? | | ??????????????????#######g##### #????????????????? | | ???????????######## # ## #????????????????? | | ???????????# # < # ## #??????????????### | | ???????????# # # """ ## ##????????????##"" | | ############ + + """ # #???????????##"!! | | # # "T" # # """ + +???????????#"" | | """ # # """ # # # #???????????# | | """ # !! # # ######## #???????????# > | | """ # !! ########^^^#??????# #???????????# | | # #??????# #??????# #???????????# | | #! #??????# #?????## %##???????????# | | #+######+########## ####### #????????????# | | %############## | | % % ! | | %= | | ###################+######## % | | #?????????????# #??## ########## #### | | #?????????????# T #???# #?# # # | | +?????????????# #???# #?# + + | | #?????????????# =[[ #???# #?# # # | | #?????????????# = [ !#???# ### """ #^ # | +----------------------------------------------------+ Best States ------------- Heat Dissipation 35 Energy Generation 14 Energy Capacity 250 Matter Stores 400 Matter Capacity 400 Sight Range 16 Robot Scan Range 14 Terrain Scan Density 10 Evasion (%) 55 Targeting Accuracy 5 Item Schematics ----------------- None Robot Schematics ------------------ None Fabricated ------------ Nothing Alien Tech Used ----------------- None Achievements -------------- Crack Shot First Step to Greatness One Hack Too Far Risk Taker Uninvited Guest Challenges ------------ None Game ------ Seed AutogunHellfireTriangulator Manual? 0 Play Time 00:39:51 Cumulative 0.6 hours Start 2024.10.18 @ 18:58:06 End 2024.10.18 @ 19:44:33 Sessions 1 Manual Loads 0 Difficulty Rogue Special Mode None Game No. 1 Rogue 1 Adventurer 0 Explorer 0 Win Type - Total 0 Types 0/0/0/0/0/0/0/0/0 Lore% 0 Gallery% 1 Achievement% 1 Wizard Run 0 Options --------- Layout 1 ASCII 0 Keyboard 0 Movement Mouse Keybinds 0 Fullscreen 1 Font 24/Smallcaps Map View 50x35 Zoom Use 0% Tactical HUD 0 Map Filters NONE Filters NONE Steam 1 RUN: 0ed1f7c8-5916-42bb-89d0-fc22c571729e